Cogmind - Beta 16 --- EXPLORER MODE // 2025.12.08 @ 20:18:01 Player: Dragonlord Result: Destroyed by as-19850 with Assembled Blade Performance ------------- Evolutions (0) 0 Regions Visited (2) 400 Robots Destroyed (18) 90 Value Destroyed (512) 512 Prototype IDs (2) 40 Alien Tech Used (0) 0 Bonus (0) 0 TOTAL SCORE: 1042 Bonus ------- None Cogmind --------- Core Integrity 0/250 Matter 46/300 Energy 64/125 System Corruption 4% Temperature Cool (0) Movement Rolling (80) Location -10/Mines Parts ------- > --- POWER (1) -------- Light Ion Engine > --- PROPULSION (2) --- Wheel Wheel > --- UTILITY (2) ------ Terrain Scanner > --- WEAPON (3) ------- (None) > --- INVENTORY (5) ---- Improved Ion Engine Medium Battery (150) Sensor Array Light Armor Plating Beam Cannon Peak State ------------ > --- POWER ------------ Improved Ion Engine > --- PROPULSION ------- Light Treads Light Treads > --- UTILITY ---------- Targeting Computer Weapon Shielding > --- WEAPON ----------- Rocket Launcher Rocket Launcher Rocket Launcher > --- INVENTORY -------- Improved Ion Engine Medium Battery Sensor Array Light Armor Plating Beam Cannon [Rating: 12] Favorites ----------- Power Ion Engine Engine Ion Engine Propulsion Light Treads Treads Light Treads Wheel Wheel Hover Unit Backup Propulsion I Flight Unit Flight Unit Utility Targeting Computer Device Terrain Scanner Processor Targeting Computer Protection Weapon Shielding Weapon Light Assault Rifle Energy Gun Small Laser Energy Cannon Light EM Pulse Cannon Ballistic Gun Light Assault Rifle Launcher Rocket Launcher Build | -11 -10 -10 ------- Run | Yrd Mat Min Slots Evolved 1 | . 1 . Power . | . . . Propulsion . | . . . Utility . | . . . Weapon 1 | . 1 . Parts Attached 20 | 6 10 4 Power 5 | 1 3 1 Engine 5 | 1 3 1 Core . | . . . Reactor . | . . . Propulsion 5 | 2 1 2 Treads 2 | 2 . . Leg . | . . . Wheel 2 | . . 2 Hover . | . . . Flight 1 | . 1 . Utility 3 | 2 . 1 Device 1 | . . 1 Storage . | . . . Processor 1 | 1 . . Hackware . | . . . Protection 1 | 1 . . Artifact . | . . . Weapon 7 | 1 6 . Energy Gun 1 | . 1 . Energy Cannon 1 | . 1 . Ballistic Gun 2 | 1 1 . Ballistic Cannon . | . . . Launcher 3 | . 3 . Special Weapon . | . . . Impact Weapon . | . . . Slashing Weapon . | . . . Piercing Weapon . | . . . Special Melee Weapon . | . . . Unidentified Prototypes . | . . . Parts Lost 8 | . . 8 Power 1 | . . 1 Propulsion 2 | . . 2 Utility 2 | . . 2 Weapon 3 | . . 3 Highest Loss Streak 8 | . . 8 To Critical Strikes . | . . . Average Backups 4 | 3 4 5 Power . | . . 1 Propulsion . | 1 . . Utility 2 | 1 2 3 Weapon . | . . 1 Tool/Special . | . . . Unused Backups 9 | . 4 5 Power 1 | . . 1 Propulsion 2 | . 2 . Utility 4 | . 1 3 Weapon 1 | . . 1 Tool/Special 1 | . 1 . Average Slot Usage (%) 93 | . 96 54 Engine 11 | . 11 3 Treads 23 | . 23 14 Processor 11 | . 12 7 Protection 11 | . 11 6 Energy Gun 2 | . 3 . Energy Cannon 6 | . 7 . Ballistic Gun 21 | . 23 . Launcher 2 | . 1 21 Peak Build Rating 12 | 6 12 12 Average Rating 7 | 5 8 6 On Entrance 6 | . 6 12 Avg Prop Armor Cover (%) 11 | . 11 . Naked Turns 32 | . . 32 Heaviest Build 20 | 7 20 20 Greatest Support 40 | 40 40 40 Greatest Overweight (x) 4 | . 4 1 Average Overweight (x) . | . . . Largest Inventory Capacity 5 | 5 5 5 Average Capacity 5 | 5 5 5 Most Carried 5 | 5 5 5 Average Carried 4 | 3 4 5 Final Capacity 5 | 5 5 5 Final Carried 5 | 5 5 5 Class Distribution -------------------- 77% | Hacker-Gunner 22% | Hacker-Mutant Dominant Class ---------------- Hacker-Gunner | -10/Materials Hacker-Mutant | -10/Mines Resources | -11 -10 -10 ----------- Run | Yrd Mat Min Matter Collected 571 | 232 250 89 Remotely . | . . . Salvage Created 466 | . 426 40 Parts 33 | . 29 4 Haulers Intercepted . | . . . Recyclers Shooed . | . . . Parts Field Recycled . | . . . Retrieved Matter . | . . . Parts Self-Destructed . | . . . Prevented . | . . . Parts Restored . | . . . Kills | -11 -10 -10 ------- Run | Yrd Mat Min Combat Hostiles Destroyed 22 | . 9 13 Guns 6 | . 6 . Cannons 3 | . 3 . AOE 13 | . . 13 Classes Destroyed 5 | . 3 2 Watcher 3 | . 3 . Swarmer 5 | . 1 4 Grunt 8 | . 8 . Demolisher 2 | . . 2 Assembled 7 | . . 7 Best Kill Streak 13 | . 4 13 Combat Bots Only 13 | . 4 13 Max Kills in Single Turn 3 | . 1 3 Gunslinging . | . . . Exploded 3 | . . 3 Melee . | . . . Uniques/NPCs Destroyed . | . . . Combat | -11 -10 -10 -------- Run | Yrd Mat Min Hostile Shots Fired 82 | . 35 47 Missed 22 | . 10 12 Hits 60 | . 25 35 Melee 13 | . . 13 Projectile 47 | . 25 22 AOE 12 | . . 12 Critical Strikes 2 | . 1 1 Actively Blocked 1 | . . 1 Damage Taken 956 | . 178 778 Core 255 | . 34 221 Absorbed by Shields . | . . . Redirected to Shielding 62 | . 10 52 Ignored by Resistances 570 | . 113 457 Regen/Repaired (Parts) 23 | . 23 . Core Remaining (%) 100 | 100 . . Volleys Fired 35 | . 23 12 Largest 3 | . 3 3 Hottest 99 | . 96 99 Shots Fired 89 | . 58 31 Gun 50 | . 50 . Cannon 8 | . 8 . Launcher 31 | . . 31 Special . | . . . Kinetic 46 | . 46 . Thermal 4 | . 4 . Explosive 31 | . . 31 Electromagnetic 8 | . 8 . Robot Hit Streak 16 | . 11 16 Robot Miss Streak 2 | . 1 2 Penetration Max . | . . . Secondary Targets . | . . . Shots Hit Robots 60 | . 40 20 Core Hits 60 | . 20 40 Critical Kills 1 | . 1 . Critical Parts Destroyed . | . . . Critical Strikes 1 | . 1 . Destroy 1 | . 1 . Melee Attacks . | . . . Impact . | . . . Slashing . | . . . Piercing . | . . . Sneak Attacks . | . . . Combat Hostiles . | . . . Follow-up Attacks . | . . . Damage Inflicted 1750 | . 529 1221 Guns 342 | . 342 . Cannons 187 | . 187 . Explosions 1220 | . . 1220 Melee . | . . . Ramming 1 | . . 1 Kinetic 310 | . 310 . Thermal 32 | . 32 . Explosive 1220 | . . 1220 Electromagnetic 187 | . 187 . Impact . | . . . Slashing . | . . . Piercing . | . . . Highest Corruption 4 | . . 4 Average Corruption 4 | . . 4 Corruption Purged . | . . . Corruption Blocked . | . . . Effects 2 | . . 2 Matter Fused 1 | . . 1 Data Loss (minor) 1 | . . 1 Overload Shots . | . . . Overflow Damage 57 | . 8 49 Projectiles 8 | . 8 . Explosions 49 | . . 49 Melee . | . . . Knockbacks . | . . . Impact . | . . . Kinetic . | . . . Secondary . | . . . Self-Inflicted Damage 128 | . . 128 Shots 5 | . . 5 Rammed 1 | . . 1 Targets Rammed 1 | . . 1 Kicked . | . . . Crushed . | . . . Highest Temperature 207 | . 207 179 Average Temperature 65 | . 55 80 Received Heat Transfer 268 | . 168 100 Siege Activations . | . . . Martial Activations . | . . . Shielding Activations . | . . . Robots Disrupted . | . . . Combat Hostiles . | . . . Robots Corrupted . | . . . Combat Hostiles . | . . . Parts Fried . | . . . Impact Corruptions . | . . . Robots Melted . | . . . Combat Hostiles . | . . . Parts Melted . | . . . Heat Transferred 75 | . 75 . Parts Sabotaged . | . . . Parts Stolen . | . . . Parts Stripped . | . . . Power Chain Reactions . | . . . Alert | -11 -10 -10 ------- Run | Yrd Mat Min Maximum Alert Level 1 | . . 1 Low Security (%) 99 | 100 100 97 Level 1 . | . . 2 Level 2 . | . . . Level 3 . | . . . Level 4 . | . . . Level 5 . | . . . High Security . | . . . Max Security . | . . . Peak Influence 200 | . 76 200 Initial . | . . . Average 12 | . 5 100 Influence Increases 500 | . 259 241 Destroy 0b10 Robot/C 300 | . 180 120 Destroy 0b10 Robot/NC 15 | . 15 . Destroy Leader 56 | . 26 30 Successful Hack 21 | . 21 . Disable Machine 4 | . . 4 Destroy Structure 89 | . 2 87 Lose Combat Pursuer 15 | . 15 . Influence Decreases 444 | . 259 185 Time Decay 364 | . 259 105 Lost Part 80 | . . 80 Squads Dispatched . | . . . Investigation . | . . . Extermination . | . . . Reinforcement . | . . . Assault . | . . . Garrison . | . . . Intercept . | . . . Searches Triggered . | . . . Construction Impeded . | . . . Haulers Reinforced . | . . . Active Scanning Responses . | . . . Cargo Convoy Interrupts . | . . . Stealth | -11 -10 -10 --------- Run | Yrd Mat Min Distress Signals . | . . . Communications Jammed . | . . . Distress Signals . | . . . Times Spotted 37 | . 16 21 Peak Tracking Total 7 | . 3 7 Tactical Retreats 3 | . 1 2 Traps | -11 -10 -10 ------- Run | Yrd Mat Min Traps Triggered . | . . . Indirectly . | . . . Trap Hack Attempts . | . . . Triggered . | . . . Disarmed 4 | . 4 . Reprogrammed . | . . . Reused . | . . . Traps Extracted . | . . . Installed . | . . . Triggered . | . . . Machines | -11 -10 -10 ---------- Run | Yrd Mat Min Machines Disabled 1 | . . 1 Max in Single Turn 1 | . . 1 Machines Repaired . | . . . Machines Dismantled . | . . . Machines Sabotaged . | . . . Overloaded Fab Kills . | . . . Hacking | -11 -10 -10 --------- Run | Yrd Mat Min Machines Accessed 11 | . 11 . Terminals 8 | . 8 . Fabricators . | . . . Repair Stations 1 | . 1 . Recycling Units 2 | . 2 . Scanalyzers . | . . . Garrison Access . | . . . Total Hacks 43 | . 43 . Successful 35 | . 35 . Failed 8 | . 8 . Catastrophic . | . . . Database Lockouts . | . . . Manual . | . . . Terminals 31 | . 31 . Fabricators . | . . . Repair Stations 7 | . 7 . Recycling Units 5 | . 5 . Scanalyzers . | . . . Garrison Access . | . . . Terminal Hacks 24 | . 24 . Record 8 | . 8 . Robot Analysis 1 | . 1 . Prototype ID Bank 1 | . 1 . Emergency Access Points 2 | . 2 . Terminal Index 1 | . 1 . Alert Level 1 | . 1 . Locate Traps 4 | . 4 . Disarm Traps 1 | . 1 . Transport Status 1 | . 1 . Investigation Status 1 | . 1 . Reinforcement Status 1 | . 1 . Registered Components 1 | . 1 . Zone Layout 1 | . 1 . Fabricator Hacks . | . . . Repair Station Hacks 7 | . 7 . Scan Component 3 | . 3 . Repair 3 | . 3 . Refit 1 | . 1 . Recycling Unit Hacks 4 | . 4 . Recycle Component 3 | . 3 . Process 1 | . 1 . Scanalyzer . | . . . Garrison Access Hacks . | . . . Unauthorized Hacks . | . . . Terminals . | . . . Fabricators . | . . . Repair Stations . | . . . Recycling Units . | . . . Scanalyzers . | . . . Garrison Access . | . . . Data Cores Recovered . | . . . Used . | . . . Hacking Detections 8 | . 8 . Full Trace Events 2 | . 2 . Feedback Events . | . . . Feedback Blocked . | . . . Robot Schematics Acquired . | . . . Robots Built . | . . . Authchips . | . . . Time . | . . . Total Robot Build Rating . | . . . Part Schematics Acquired . | . . . Parts Built . | . . . Authchips . | . . . Time . | . . . Total Part Build Rating . | . . . Part Studies Acquired . | . . . Parts Repaired 3 | . 3 . Time 78 | . 78 . Parts Recycled 3 | . 3 . Recycled Matter 21 | . 21 . Retrieved Matter . | . . . Retrieved Components . | . . . Parts Scanalyzed . | . . . Part Schematics Acquired . | . . . Parts Damaged . | . . . Bothacking | -11 -10 -10 ------------ Run | Yrd Mat Min Used RIF Installer . | . . . Robots Hacked . | . . . Non-combat . | . . . Combat . | . . . Robot Hacks Applied . | . . . Relay Couplers Released . | . . . Fabnet Peak Effective % . | . . . Robots Rewired . | . . . Allies Hacked . | . . . Hacks Repelled . | . . . Allies | -11 -10 -10 -------- Run | Yrd Mat Min Total Allies . | . . . Largest Group . | . . . Highest-Rated Group . | . . . Highest-Rated Ally . | . . . Total Orders . | . . . Ally Attacks . | . . . Total Damage . | . . . Kills . | . . . Allies Corrupted . | . . . Allies Melted . | . . . Intel | -11 -10 -10 ------- Run | Yrd Mat Min Active Infowar (turns) 10 | . . 10 Terrain 10 | . . 10 Robot Analysis Total 1 | . 1 . Derelict Logs Recovered . | . . . Drone Launches . | . . . Drone Recoveries . | . . . Exploration | -11 -10 -10 ------------- Run | Yrd Mat Min Turns Passed 1927 | 166 1605 156 Spaces Moved 1127 | 106 897 124 Core 110 | 18 9 83 Treads 1002 | 88 878 36 Legs . | . . . Wheels 5 | . . 5 Hover 10 | . 10 . Flight . | . . . Fastest Speed 50 | 50 160 50 Average Speed 151 | 141 161 90 Slowest Speed 260 | 160 260 160 Overloaded Moves . | . . . Propulsion Burnouts . | . . . Robots Hopped . | . . . Potential Cave-ins . | . . . Cave-ins Triggered . | . . . Exploration Rate (%) 47 | 6 98 39 Regions Visited 2 Branch Regions 1 Pre-discovered Areas . | . . . Known Exits Taken 2 | 1 1 . Unknown Exits Taken . | . . . Scrap Searched . | . . . Spaces Dug . | . . . Terrain Destroyed 142 | . . 142 Melee . | . . . Projectile . | . . . AOE 142 | . . 142 Terrain Rammed . | . . . Walls Destroyed . | . . . Machines Disabled . | . . . Actions | -11 -10 -10 --------- Run | Yrd Mat Min Total 1269 | 119 1009 141 Wait 61 | 3 58 . Move 1125 | 105 896 124 Hop . | . . . Pick Up 11 | 5 6 . Fast Attach 21 | 6 11 4 Attach 1 | . 1 . Detach 2 | . 2 . Swap 1 | . 1 . Drop 11 | . 11 . Fire 35 | . 23 12 Melee . | . . . Ram . | . . . Kick . | . . . Crush 1 | . . 1 Escape Stasis . | . . . Rewire . | . . . Trap . | . . . Miscellaneous . | . . . Route ------- -11/Scrapyard -10/Materials (discovered 4 exits: *Mat x3 / *Min) -10/Mines History --------- Turn | Location | Event 7 | -11/Scrapyard | Identified exit to Materials 7 | -11/Scrapyard | Discovered exit to Materials (range 15) 167 | -11/Scrapyard | Entered Materials 167 | -10/Materials | Evolved 1 slot: Weapon x1 317 | -10/Materials | Build established: Hacker-Mutant 531 | -10/Materials | Identified exit to Mines 531 | -10/Materials | Discovered exit to Mines (range 7) 655 | -10/Materials | Build established: Hacker-Gunner 750 | -10/Materials | Identified exit to Materials 750 | -10/Materials | Discovered exit to Materials (range 16) 1109 | -10/Materials | Discovered exit to Materials (range 15) 1342 | -10/Materials | Discovered exit to Materials (range 12) 1515 | -10/Materials | Repaired Lgt. Treads 1541 | -10/Materials | Repaired Weapon Shielding 1570 | -10/Materials | Repaired Ion Engine 1772 | -10/Materials | Entered Mines 1773 | -10/Mines | Assembled infested the area 1868 | -10/Mines | Destroyed 13 combat bots 1870 | -10/Mines | Core integrity fell below 50% 1897 | -10/Mines | Received a Rocket Launcher from a helpful Derelict 1917 | -10/Mines | Lost 8 parts (1p2n2u3w) 1921 | -10/Mines | Core integrity fell below 20% 1928 | -10/Mines | Destroyed by as-19850 with Assembled Blade Last Messages --------------- 01895_ ZO-FEW(g): "Need to get rid of a swarm? Done. Need a big hole in the wall? Done." 01896_ ZO-FEW(g): "Need a small hole in the wall? Leave that to the mining laser wimps, I say!" 01896_ as-79805 destroyed. 01897_ ZO-FEW(g) heat spikes uncontrollably. 01897_ ZO-FEW(g): "Would you like a rocket launcher? I know I would if I were you, so I'm going to lend you mine." 01897_ ZO-FEW(g) slips back into the shadows. 01897_ Acquired 10 matter. 01903_ System corrupted: Component data lost. 01913_ as-19850 sneak attacks. 01913_ K-01 Serf destroyed. 01918_ Acquired Terrain Scanner. 01919_ Acquired 17 matter. 01920_ Acquired Wheel. 01925_ Acquired Lgt. Ion Engine. 01927_ Acquired 27 matter. Map ----- +----------------------------------------------------+ | ????????????????????????????????????????????????? | | ?????????????????????????????????????????????????? | | #????????????????????????????????????????????????? | | #????????????????????????????????????????????????? | | ?????????????????????????????????????????????????? | | ##???????????????????????????????????????????????? | | #???????????????????????????????????????????????? | | #???????????????????????????????????????????????? | | #???????????????????????????????????????????????? | | #????????????????????????????????????????????????? | | #????????????????????????????????????????????????? | | ?????????????????????????????????????????????????? | | #????????????????????????####????????????????????? | | #???????????????????????? #????????????????????? | | #???????????????????????? #????????????????????? | | ##???????????????????????# #????????????????????? | | #???????????????????????# #????????????????????? | | #?????????????????? #????????????????????? | | #??????????????# ????????????????????? | | #######?????????????## ##???????????????????? | | $ ###???????????????????# ###?????????????????? | | ####??????????????????# % ??????????????????? | | #??????????????????# ???????????????????? | | #??????????????????# #????????????????????? | | ### #???????????? ?????# #????????? ??????????? | | ??# #??????????????????#@a #????????????????????? | | ??# #??????###?????????# ##????????????????????? | | ??# #??#### ##????????# |#?????????????????????? | | ??# #?# ### ##### ##????????????????????? | | ??# ## ## #????????????????????? | | ### # ######### #????????????????????? | | #??????## ##???????????????????? | | #??# #?????## ###?????????????????? | | # ##??# #???### ##????????????????? | | #### ###??## #??## ##???????????????? | | ##??# #???## #??# #???????????????? | | #???# #?### ##?# ## ##???????????????? | | ????# ### ### ####?##????????????????? | | ????# ## ##??????????????????????? | | ????# ##???????????????????????? | | ????# $ ##????????????????????????? | | ????####### ###########?????????????????????????? | | ??????????####???????????????????????????????????? | | ?????????????????????????????????????????????????? | | | | | | | | | | | | | +----------------------------------------------------+ Best States ------------- Heat Dissipation 25 Energy Generation 12 Energy Capacity 265 Matter Stores 300 Matter Capacity 300 Sight Range 16 Terrain Scan Range 14 Terrain Scan Density 10 Resistance: KI 35 Resistance: TH 35 Resistance: EX 35 Resistance: EM 35 Resistance: I 35 Resistance: S 35 Resistance: P 35 Weapon Shielding 33 Evasion (%) 50 Targeting Accuracy 5 Recoil Reduction 2 Offensive Hacking 20 Item Schematics ----------------- None Robot Schematics ------------------ None Fabricated ------------ Nothing Repaired ---------- Weapon Shielding | 80% | -10/Materials Ion Engine | 78% | -10/Materials Studied --------- None Alien Tech Used ----------------- None Achievements -------------- DATA ERROR: Steam Global Achievement% Fitting Room For Emergencies Only That Tickles Challenges ------------ None Game ------ Seed DisruptorAuthchipPlating Manual? 0 Play Time 00:59:25 Cumulative 18.8 hours Start 2025.12.08 @ 19:07:36 End 2025.12.08 @ 20:18:01 Sessions 1 Manual Loads 0 Difficulty Explorer Special Mode None Game No. 8 Rogue 0 Adventurer 0 Explorer 8 Win Type - Total 0 Types 0/0/0/0/0/0/0/0/0/0 Lore% 6 Gallery% 12 Achievement% 11 Wizard Run 0 Options --------- Layout 1 ASCII 0 Keyboard 1 Movement Numpad Keybinds 0 Fullscreen 1 Font 24/Smallcaps Map View 50x35 Zoom Use 0% Tactical HUD 1 Map Filters NONE Filters NONE Steam SD RUN: 538c9dd8-23a1-4817-a0ee-6888202196cc